fUST/lending_fUST_20250809
["ID","MTS","AMOUNT","RATE_DAILY","PERIOD"]
[378101184,1754731847159,-200.82943486,0.00022348,3]
[378101185,1754731847168,-151.0,0.00022348,3]
[378101186,1754731847293,-201.32751794,0.00022348,3]
[378101187,1754731847304,-307.096107,0.00022356,2]
[378101188,1754731847314,-605.8719077,0.00022356,2]
[378101189,1754731847323,-800.0,0.00022388,2]
[378101190,1754731847333,-151.0,0.000224,7]
[378101191,1754731847342,-151.0,0.000224,10]
[378101192,1754731847351,-806.4545099,0.00022455,2]
[378101193,1754731847361,-800.0,0.0002246,2]
[378101194,1754731847370,-151.0,0.00022465,7]
[378101195,1754731847379,-885.170646,0.00022465,7]
[378101196,1754731847389,-885.170646,0.00022465,7]
[378101197,1754731847398,-185.767744,0.00022465,7]
[378101198,1754731847408,-185.767744,0.00022465,7]
[378101199,1754731847418,-151.0,0.00022465,7]
[378101200,1754731847428,-151.0,0.00022465,7]
[378101201,1754731847438,-460.0,0.00022465,2]
[378101202,1754731847447,-151.0,0.00022465,7]
[378101203,1754731847457,-540.44,0.00022465,2]
[378101204,1754731847467,-460.0,0.00022465,2]
[378101205,1754731847477,-516.34471,0.00022465,7]
[378101206,1754731847487,-516.34471,0.00022465,7]
[378101207,1754731847497,-460.0,0.00022465,2]
[378101208,1754731847506,-460.0,0.00022465,2]
[378101209,1754731847518,-161.678658,0.00022465,7]
[378101210,1754731847528,-161.678658,0.00022465,7]
[378101211,1754731847538,-460.0,0.00022465,2]
[378101212,1754731847548,-460.0,0.00022465,2]
[378101213,1754731847557,-156.883488,0.00022465,7]
[378101214,1754731847568,-156.883488,0.00022465,7]
[378101215,1754731847577,-460.0,0.00022465,2]
[378101216,1754731847587,-710.349849,0.00022465,7]
[378101217,1754731847597,-710.349849,0.00022465,7]
[378101218,1754731847606,-460.0,0.00022465,2]
[378101219,1754731847615,-517.09,0.00022465,2]
[378101220,1754731847625,-460.0,0.00022465,2]
[378101221,1754731847634,-460.0,0.00022465,2]
[378101222,1754731847643,-695.99,0.00022465,2]
[378101223,1754731847653,-491.79,0.00022465,2]
[378101224,1754731847662,-460.0,0.00022465,2]
[378101225,1754731847671,-460.0,0.00022465,2]
[378101226,1754731847681,-627.56,0.00022465,2]
[378101227,1754731847690,-460.0,0.00022465,2]
[378101228,1754731847700,-460.0,0.00022465,2]
[378101229,1754731847710,-460.0,0.00022465,2]
[378101230,1754731847719,-465.68674025,0.00022465,2]
[378101231,1754731847729,-460.0,0.00022465,2]
[378101232,1754731847738,-460.0,0.00022465,2]
[378101233,1754731847748,-460.0,0.00022465,2]
[378101234,1754731847757,-460.0,0.00022465,2]
[378101235,1754731847767,-460.0,0.00022465,2]
[378101236,1754731847776,-151.0,0.00022465,7]
[378101237,1754731847785,-460.0,0.00022465,2]
[378101238,1754731847795,-811.31,0.00022465,2]
[378101239,1754731847804,-460.0,0.00022465,2]
[378101240,1754731847814,-460.0,0.00022465,2]
[378101241,1754731847823,-460.0,0.00022465,2]
[378101242,1754731847834,-460.0,0.00022465,2]
[378101243,1754731847843,-460.0,0.00022465,2]
[378101244,1754731847852,-460.0,0.00022465,2]
[378101245,1754731847861,-878.986196,0.00022465,7]
[378101246,1754731847870,-878.986196,0.00022465,7]
[378101247,1754731847880,-460.0,0.00022465,2]
[378101248,1754731847889,-460.0,0.00022465,2]
[378101249,1754731847899,-460.0,0.00022465,2]
[378101250,1754731847910,-460.0,0.00022465,2]
[378101251,1754731847919,-460.0,0.00022465,2]
[378101252,1754731847929,-460.0,0.00022465,2]
[378101253,1754731847939,-513.179356,0.00022465,7]
[378101254,1754731847948,-513.179356,0.00022465,7]
[378101255,1754731847957,-445.387101,0.00022465,7]
[378101256,1754731847967,-445.387101,0.00022465,7]
[378101257,1754731847975,-460.0,0.00022465,2]
[378101258,1754731847985,-460.0,0.00022465,2]
[378101259,1754731847994,-600.95756887,0.00022465,2]
[378101260,1754731848004,-849.01,0.00022465,2]
[378101261,1754731848014,-629.02,0.00022465,2]
[378101262,1754731848025,-460.0,0.00022465,2]
[378101263,1754731848035,-151.0,0.00022465,7]
[378101264,1754731848046,-460.0,0.00022465,2]
[378101265,1754731848056,-460.0,0.00022465,2]
[378101266,1754731848066,-798.7,0.00022465,2]
[378101267,1754731848076,-460.0,0.00022465,2]
[378101268,1754731848085,-460.0,0.00022465,2]
[378101269,1754731848095,-961.93,0.00022465,2]
[378101270,1754731848105,-460.0,0.00022465,2]
[378101271,1754731848114,-460.0,0.00022465,2]
[378101272,1754731848124,-460.0,0.00022465,2]
[378101273,1754731848133,-460.0,0.00022465,2]
[378101274,1754731848143,-1005.29,0.00022465,2]
[378101275,1754731848152,-460.0,0.00022465,2]
[378101276,1754731848162,-5272.4,0.00022465,2]
[378101277,1754731848171,-1027.59,0.00022465,2]
[378101278,1754731848182,-460.0,0.00022465,2]
[378101279,1754731848193,-629.19,0.00022465,2]
[378101280,1754731848204,-460.0,0.00022465,2]
[378101281,1754731848213,-460.0,0.00022465,2]
[378101282,1754731848223,-497.4,0.00022465,2]
[378101283,1754731848234,-460.0,0.00022465,2]
[378101284,1754731848243,-460.0,0.00022465,2]
[378101285,1754731848252,-1509.57,0.00022465,2]
[378101286,1754731848262,-724.29,0.00022465,2]
[378101287,1754731848275,-460.0,0.00022465,2]
[378101288,1754731848285,-460.0,0.00022465,2]
[378101289,1754731848295,-1580.26,0.00022465,2]
[378101290,1754731848305,-460.0,0.00022465,2]
[378101291,1754731848314,-462.39,0.00022465,2]
[378101292,1754731848323,-460.0,0.00022465,2]
[378101293,1754731848333,-460.0,0.00022465,2]
[378101294,1754731848342,-682.23,0.00022465,2]
[378101295,1754731848352,-236.5627385,0.00022465,2]
[378101296,1754731848362,-460.0,0.00022465,2]
[378101297,1754731848371,-2318.76,0.00022465,2]
[378101298,1754731848381,-491.55,0.00022465,2]
[378101299,1754731848390,-460.0,0.00022465,2]
[378101300,1754731848399,-460.0,0.00022465,2]
[378101301,1754731848409,-2167.21,0.00022465,2]
[378101302,1754731848418,-1521.98,0.00022465,2]
[378101303,1754731848427,-460.0,0.00022465,2]
[378101304,1754731848437,-460.0,0.00022465,2]
[378101305,1754731848446,-460.0,0.00022465,2]
[378101306,1754731848456,-460.0,0.00022465,2]
[378101307,1754731848465,-460.0,0.00022465,2]
[378101308,1754731848473,-748.6,0.00022465,2]
[378101309,1754731848483,-1612.36,0.00022465,2]
[378101310,1754731848492,-941.63,0.00022465,2]
[378101311,1754731848501,-460.0,0.00022465,2]
[378101312,1754731848510,-460.0,0.00022465,2]
[378101313,1754731848520,-851.39,0.00022465,2]
[378101314,1754731848529,-486.14,0.00022465,2]
[378101315,1754731848539,-460.0,0.00022465,2]
[378101316,1754731848548,-486.58,0.00022465,2]
[378101317,1754731848558,-460.0,0.00022465,2]
[378101318,1754731848568,-460.0,0.00022465,2]
[378101319,1754731848577,-844.82,0.00022465,2]
[378101320,1754731848586,-1800.21,0.00022465,2]
[378101321,1754731848596,-460.0,0.00022465,2]
[378101322,1754731848605,-460.0,0.00022465,2]
[378101323,1754731848615,-460.0,0.00022465,2]
[378101324,1754731848624,-643.2,0.00022465,2]
[378101325,1754731848633,-460.0,0.00022465,2]
[378101326,1754731848643,-460.0,0.00022465,2]
[378101327,1754731848652,-460.0,0.00022465,2]
[378101328,1754731848661,-1351.49,0.00022465,2]
[378101329,1754731848670,-460.0,0.00022465,2]
[378101330,1754731848679,-540.39,0.00022465,2]
[378101331,1754731848689,-460.0,0.00022465,2]
[378101332,1754731848698,-654.04,0.00022465,2]
[378101333,1754731848708,-501.43,0.00022465,2]
[378101334,1754731848717,-460.0,0.00022465,2]
[378101335,1754731848727,-460.0,0.00022465,2]
[378101336,1754731848737,-1059.68,0.00022465,2]
[378101337,1754731848746,-1113.92,0.00022465,2]
[378101338,1754731848757,-460.0,0.00022465,2]
[378101339,1754731848768,-460.0,0.00022465,2]
[378101340,1754731848778,-1229.13,0.00022465,2]
[378101341,1754731848788,-460.0,0.00022465,2]
[378101342,1754731848798,-1197.06,0.00022465,2]
[378101343,1754731848808,-621.79,0.00022465,2]
[378101344,1754731848818,-460.0,0.00022465,2]
[378101345,1754731848828,-460.0,0.00022465,2]
[378101346,1754731848838,-460.0,0.00022465,2]
[378101347,1754731848848,-460.0,0.00022465,2]
[378101348,1754731848858,-1588.18,0.00022465,2]
[378101349,1754731848867,-460.0,0.00022465,2]
[378101350,1754731848877,-3394.68,0.00022465,2]
[378101351,1754731848887,-460.0,0.00022465,2]
[378101352,1754731848897,-460.0,0.00022465,2]
[378101353,1754731848907,-460.0,0.00022465,2]
[378101354,1754731848916,-153.0,0.00022472,2]
[378101355,1754731848926,-153.0,0.00022472,2]
[378101356,1754731848935,-600.0,0.00022473,2]
[378101357,1754731848944,-500.0,0.00022473,2]
[378101358,1754731848953,-500.26258628,0.00022473,2]
[378101359,1754731848963,-500.0,0.00022473,2]
[378101360,1754731848972,-500.0,0.00022473,2]
[378101361,1754731848981,-500.0,0.00022473,2]
[378101362,1754731848990,-500.0,0.00022473,2]
[378101363,1754731848999,-500.0,0.00022473,2]
[378101364,1754731849008,-500.0,0.00022473,2]
[378101365,1754731849020,-500.0,0.00022473,2]
[378101366,1754731849029,-500.0,0.00022473,2]
[378101367,1754731849039,-583.5147666,0.00022473,2]
[378101368,1754731849049,-150.0,0.00022473,2]
[378101369,1754731849058,-500.0,0.00022473,2]
[378101370,1754731849070,-337.94633993,0.00022473,2]
[378101371,1754731849079,-500.0,0.00022473,2]
[378101372,1754731849089,-500.0,0.00022473,2]
[378101373,1754731849099,-500.0,0.00022473,2]
[378101374,1754731849109,-186.21622893,0.00022473,2]
[378101375,1754731849119,-500.0,0.00022473,2]
[378101376,1754731849129,-157.91028098,0.00022473,2]
[378101377,1754731849138,-160.41815299,0.00022473,2]
[378101378,1754731849147,-500.0,0.00022473,2]
[378101379,1754731849157,-188.4175422,0.00022473,2]
[378101380,1754731849166,-500.0,0.00022473,2]
[378101381,1754731849175,-500.0,0.00022473,2]
[378101382,1754731849185,-500.0,0.00022473,2]
[378101383,1754731849198,-500.0,0.00022473,2]
[378101384,1754731849207,-500.0,0.00022473,2]
[378101385,1754731849217,-158.0,0.00022473,2]
[378101386,1754731849227,-500.0,0.00022473,2]
[378101387,1754731849237,-500.0,0.00022473,2]
[378101388,1754731849247,-340.41549128,0.00022473,2]
[378101389,1754731849256,-500.0,0.00022473,2]
[378101390,1754731849265,-159.98785499,0.00022473,2]
[378101391,1754731849275,-500.0,0.00022473,2]
[378101392,1754731849284,-160.01794441,0.00022473,2]
[378101393,1754731849293,-260.47020946,0.00022473,2]
[378101394,1754731849303,-168.4177865,0.00022473,2]
[378101395,1754731849312,-158.4175313,0.00022473,2]
[378101396,1754731849322,-315.30716032,0.00022473,2]
[378101397,1754731849333,-160.41629103,0.00022473,2]
[378101398,1754731849342,-160.01740136,0.00022473,2]
[378101399,1754731849352,-158.0,0.00022473,2]
[378101400,1754731849361,-157.91333952,0.00022473,2]
[378101401,1754731849372,-158.41669994,0.00022473,2]
[378101402,1754731849381,-188.4178005,0.00022473,2]
[378101403,1754731849499,-500.0,0.00022473,2]
[378101404,1754731849511,-158.41672312,0.00022473,2]
[378101405,1754731849522,-160.01769361,0.00022473,2]
[378101406,1754731849531,-159.402156,0.00022473,2]
[378101407,1754731849541,-158.4,0.00022473,2]
[378101408,1754731849550,-160.01751809,0.00022473,2]
[378101409,1754731849559,-157.41769769,0.00022473,2]
[378101410,1754731849569,-158.0,0.00022473,2]
[378101411,1754731849578,-181.01693933,0.00022473,2]
[378101412,1754731849588,-261.37594042,0.00022473,2]
[378101413,1754731849597,-158.41676855,0.00022473,2]
[378101414,1754731849607,-158.4157627,0.00022473,2]
[378101415,1754731849616,-500.0,0.00022473,2]
[378101416,1754731849626,-165.0,0.00022473,2]
[378101417,1754731849635,-200.4,0.00022473,2]
[378101418,1754731849645,-500.0,0.00022473,2]
[378101419,1754731849656,-160.0,0.00022473,2]
[378101420,1754731849675,-160.0,0.00022473,2]
[378101421,1754731849695,-341.516943,0.00022473,2]
[378101422,1754731849708,-158.41708852,0.00022473,2]
[378101423,1754731849717,-158.0,0.00022473,2]
[378101424,1754731849727,-500.0,0.00022473,2]
[378101425,1754731849736,-348.73600961,0.00022473,2]
[378101426,1754731849746,-500.358427,0.00022473,2]
[378101427,1754731849755,-500.0,0.00022473,2]
[378101428,1754731849764,-621.33073829,0.00022473,2]
[378101429,1754731849775,-500.0,0.00022473,2]
[378101430,1754731849784,-158.0,0.00022473,2]
[378101431,1754731849794,-160.01763069,0.00022473,2]
[378101432,1754731849804,-500.0,0.00022473,2]
[378101433,1754731849813,-503.85479261,0.00022473,2]
[378101434,1754731849823,-500.0,0.00022473,2]
[378101435,1754731849832,-500.0,0.00022473,2]
[378101436,1754731849841,-500.0,0.00022473,2]
[378101437,1754731849850,-500.0,0.00022473,2]
[378101438,1754731849859,-500.0,0.00022473,2]
[378101439,1754731849869,-500.0,0.00022473,2]
[378101440,1754731849879,-500.0,0.00022473,2]
[378101441,1754731849889,-500.0,0.00022473,2]
[378101442,1754731849898,-500.0,0.00022473,2]
[378101443,1754731849908,-500.0,0.00022473,2]
[378101444,1754731849917,-500.0,0.00022473,2]
[378101445,1754731849926,-500.0,0.00022473,2]
[378101446,1754731849935,-503.18081389,0.00022473,2]
[378101447,1754731849945,-154.37255932,0.00022473,2]
[378101448,1754731849954,-500.0,0.00022473,2]
[378101449,1754731849963,-500.0,0.00022473,2]
[378101450,1754731849972,-500.0,0.00022473,2]
[378101451,1754731849982,-500.0,0.00022473,2]
[378101452,1754731850002,-500.0,0.00022473,2]
[378101453,1754731850012,-500.0,0.00022473,2]
[378101454,1754731850023,-500.0,0.00022473,2]
[378101455,1754731850033,-500.0,0.00022473,2]
[378101456,1754731850043,-500.0,0.00022473,2]
[378101457,1754731850053,-500.0,0.00022473,2]
[378101458,1754731850064,-500.0,0.00022473,2]
[378101459,1754731850074,-500.0,0.00022473,2]
[378101460,1754731850084,-500.0,0.00022473,2]
[378101461,1754731850095,-878.986196,0.00022473,7]
[378101462,1754731850105,-878.986196,0.00022473,7]
[378101463,1754731850115,-160.0,0.00022473,3]
[378101464,1754731850125,-513.179356,0.00022473,7]
[378101465,1754731850135,-166.0,0.00022473,3]
[378101466,1754731850144,-160.0,0.00022473,3]
[378101467,1754731850154,-166.0,0.00022473,3]
[378101468,1754731850163,-160.0,0.00022473,3]
[378101469,1754731850174,-166.0,0.00022473,3]
[378101470,1754731850184,-167.00063462,0.00022473,3]
[378101471,1754731850196,-160.0,0.00022473,3]
[378101472,1754731850205,-166.0,0.00022473,3]
[378101473,1754731850215,-160.0,0.00022473,3]
[378101474,1754731850225,-173.0,0.00022473,3]
[378101475,1754731850235,-202.96994295,0.00022473,3]
[378101476,1754731850245,-160.0,0.00022473,3]
[378101477,1754731850255,-166.0,0.00022473,3]
[378101478,1754731850264,-513.179356,0.00022473,7]
[378101479,1754731850275,-173.0,0.00022473,3]
[378101480,1754731850287,-169.83515668,0.00022473,3]
[378101481,1754731850296,-173.0,0.00022473,3]
[378101482,1754731850306,-160.0,0.00022473,3]
[378101483,1754731850316,-175.29485704,0.00022473,3]
[378101484,1754731850327,-1759.0,0.00022473,3]
[378101485,1754731850338,-573.57362889,0.00022473,3]
[378101486,1754731850651,-1185.42637111,0.00022473,3]
[378101487,1754731850662,-366.72362889,0.00022473,3]
[378101488,1754731850684,-1392.27637111,0.00022473,3]
[378101489,1754731850699,-394.12126661,0.00022473,3]
[378101490,1754731850714,-1362.26238777,0.00022473,3]
[378101491,1754731850731,-2.61634562,0.00022473,3]
[378101492,1754731850744,-152.0,0.00022473,3]
[378101493,1754731850756,-1759.0,0.00022473,3]
[378101494,1754731850770,-155.0,0.00022473,3]
[378101495,1754731850783,-152.0,0.00022473,3]
[378101496,1754731850796,-1368.06283607,0.00022473,3]
[378101497,1754731850811,-390.93716393,0.00022473,3]
[378101498,1754731850824,-152.0,0.00022473,3]
[378101499,1754731850836,-1759.0,0.00022473,3]
[378101500,1754731850849,-155.0,0.00022473,3]
[378101501,1754731850862,-152.0,0.00022473,3]
[378101502,1754731850874,-535.2459716,0.00022473,3]
[378101503,1754731851165,-21.78678078,0.00021481,10]
[378101504,1754731851181,-1265.78617194,0.00021481,10]
[378101505,1754731851199,-341.13704728,0.00021481,10]
[378101506,1754731851211,-2281.93382562,0.00021917,2]
[378101507,1754731851223,-742.00617438,0.00021917,2]
[378101508,1754731851235,-250.0,0.00021982,2]
[378101509,1754731851244,-151.0,0.00021982,2]
[378101510,1754731851254,-151.0,0.00021982,2]
[378101511,1754731851264,-250.0,0.00021982,2]
[378101512,1754731851274,-1223.7540284,0.00022473,3]
[378101513,1754731851284,-155.0,0.00022473,3]
[378101514,1754731851294,-152.0,0.00022473,3]
[378101515,1754731851304,-1247.29226807,0.00022473,3]
[378101516,1754731851511,-461.52421804,0.00021917,2]
[378101517,1754731851521,-511.70773193,0.00022473,3]
[378101518,1754731851530,-155.0,0.00022473,3]
[378101519,1754731851540,-152.0,0.00022473,3]
[378101520,1754731851788,-1759.0,0.00022473,3]
[378101521,1754731851805,-155.0,0.00022473,3]
[378101522,1754731851816,-157.10354714,0.00022473,3]
[378101523,1754731851828,-152.0,0.00022473,3]
[378101524,1754731851837,-1048.41083535,0.00022473,3]
[378101525,1754731851849,-710.58916465,0.00022473,3]
[378101526,1754731851859,-1759.0,0.00022473,3]
[378101527,1754731851868,-152.0,0.00022473,3]
[378101528,1754731851878,-1759.0,0.00022473,3]
[378101529,1754731851888,-1759.0,0.00022473,3]
[378101530,1754731851897,-152.0,0.00022473,3]
[378101531,1754731851906,-152.0,0.00022473,3]
[378101532,1754731851915,-1759.0,0.00022473,3]
[378101533,1754731851924,-152.0,0.00022473,3]
[378101534,1754731851933,-1759.0,0.00022473,3]
[378101535,1754731851942,-152.0,0.00022473,3]
[378101536,1754731851953,-1759.0,0.00022473,3]
[378101537,1754731851963,-152.0,0.00022473,3]
[378101538,1754731851972,-152.0,0.00022473,3]
[378101539,1754731851981,-1759.0,0.00022473,3]
[378101540,1754731851990,-152.0,0.00022473,3]
[378101541,1754731852000,-1759.0,0.00022473,3]
[378101542,1754731852010,-152.0,0.00022473,3]
[378101543,1754731852021,-1759.0,0.00022473,3]
[378101544,1754731852031,-1759.0,0.00022473,3]
[378101545,1754731852041,-152.0,0.00022473,3]
[378101546,1754731852050,-1759.0,0.00022473,3]
[378101547,1754731852060,-152.0,0.00022473,3]
[378101548,1754731852069,-1759.0,0.00022473,3]
[378101549,1754731852079,-152.0,0.00022473,3]
[378101550,1754731852088,-1759.0,0.00022473,3]
[378101551,1754731852097,-152.0,0.00022473,3]
[378101552,1754731852107,-1759.0,0.00022473,3]
[378101553,1754731852116,-152.0,0.00022473,3]
[378101554,1754731852126,-1759.0,0.00022473,3]
[378101555,1754731852136,-1759.0,0.00022473,3]
[378101556,1754731852146,-152.0,0.00022473,3]
[378101557,1754731852156,-1759.0,0.00022473,3]
[378101558,1754731852167,-152.0,0.00022473,3]
[378101559,1754731852176,-1759.0,0.00022473,3]
[378101560,1754731852187,-152.0,0.00022473,3]
[378101561,1754731852207,-1759.0,0.00022473,3]
[378101562,1754731852218,-124.65500558,0.00022473,3]
[378101563,1754731852231,-27.34499442,0.00022473,3]
[378101564,1754731852240,-424.9458307,0.00022473,3]
[378101565,1754731852802,1459.330234,0.00020948,2]
[378101566,1754731853029,334.398052,0.0002135,2]
[378101567,1754731863250,18324.66711268,0.0002139,2]
[378101568,1754731863274,32300.0,0.0002139,2]
[378101569,1754731863298,32300.0,0.0002139,2]
[378101570,1754731863321,32300.0,0.0002139,2]
[378101571,1754731863344,28326.92740339,0.0002139,2]
[378101572,1754731874202,3973.07259661,0.0002145,2]
[378101573,1754731874224,1026.92740339,0.0002145,2]
[378101574,1754731874628,7945.12897897,0.000199,2]
[378101575,1754731882229,5000.0,0.0002145,2]
[378101576,1754731886813,216.05476533,0.00021379,2]
[378101577,1754731890294,5000.0,0.0002145,2]
[378101578,1754731898883,5000.0,0.0002145,2]
[378101579,1754731915517,666.0,0.00020874,2]
[378101580,1754731917695,5000.0,0.0002145,2]
[378101581,1754731918490,457.32482035,0.00021379,2]
[378101582,1754731933529,1988.56403196,0.0002145,2]
[378101583,1754731933550,3011.43596804,0.0002145,2]
[378101584,1754731941435,541.01938748,0.00021005,2]
[378101585,1754731949517,5000.0,0.0002145,2]
[378101586,1754731966585,5000.0,0.0002145,2]
[378101587,1754731982078,5000.0,0.0002145,2]
[378101588,1754731999376,5000.0,0.0002145,2]
[378101589,1754732014326,277.56475007,0.00021389,2]
[378101590,1754732015317,5000.0,0.0002145,2]
[378101591,1754732018977,-300.0,0.00021489,2]
[378101592,1754732019000,-300.0,0.00021489,2]
[378101593,1754732019026,-634.87644414,0.0002149,2]
[378101594,1754732019052,-634.87644414,0.0002149,2]
[378101595,1754732019078,-634.87644414,0.0002149,2]
[378101596,1754732019103,-634.87644414,0.0002149,2]
[378101597,1754732019129,-634.87644414,0.0002149,2]
[378101598,1754732031616,5000.0,0.000215,2]
[378101599,1754732047083,8033.24255008,0.000199,2]
[378101600,1754732047546,5000.0,0.000215,2]
[378101603,1754732064527,5000.0,0.000215,2]
[378101604,1754732066773,783.623548,0.00020877,2]
[378101605,1754732080303,5000.0,0.000215,2]
[378101606,1754732093587,2311.17579602,0.00020365,2]
[378101607,1754732098546,5000.0,0.000215,2]
[378101609,1754732114377,5000.0,0.000215,2]
[378101611,1754732130851,5000.0,0.000215,2]
[378101612,1754732133230,753.757419,0.00013699,2]
[378101613,1754732133449,753.757419,0.00020187,2]
[378101614,1754732148919,5000.0,0.000215,2]
[378101615,1754732163379,3999.59765669,0.00019664,2]
[378101616,1754732166419,988.2319479,0.0002155,2]
[378101617,1754732229365,7765.46779843,0.000199,2]
[378101620,1754732242688,157.579551,0.00021004,2]
[378101621,1754732243185,345.32553914,0.00021005,2]
[378101622,1754732302523,5719.0692415,0.00020848,2]
[378101623,1754732333481,24900.0,0.00020848,2]
[378101624,1754732378379,208.3743327,0.00020826,2]
[378101625,1754732394728,1540.78386401,0.00020365,2]
[378101626,1754732423859,7508.6926886,0.000199,2]
[378101630,1754732544805,222.95327859,0.00021003,2]
[378101631,1754732552164,-1719.96682748,0.00021552,2]
[378101632,1754732552190,-277.56475006,0.00021553,2]
[378101633,1754732552212,-152.0,0.00021652,2]
[378101634,1754732552234,-300.0,0.00021652,2]
[378101635,1754732552256,-300.0,0.00021653,2]
[378101636,1754732552279,-1200.0,0.00021653,2]
[378101637,1754732552304,-1200.0,0.00021653,2]
[378101638,1754732552326,-300.0,0.00021654,2]
[378101639,1754732552348,-300.0,0.00021654,2]
[378101640,1754732552372,-300.0,0.00021654,2]
[378101641,1754732552397,-7508.69268847,0.00021655,2]
[378101642,1754732552437,-4558.85132487,0.0002169,2]
[378101643,1754732552470,-599.0,0.00021811,2]
[378101644,1754732552497,-1657.85570504,0.00021816,2]
[378101645,1754732552526,-701.92297768,0.00021817,2]
[378101646,1754732552556,-197.39913452,0.00021817,2]
[378101647,1754732552584,-151.79739073,0.00021817,2]
[378101648,1754732552615,-599.0,0.0002184,2]
[378101649,1754732552643,-599.0,0.00021856,2]
[378101650,1754732552677,-599.0,0.00021858,2]
[378101651,1754732552710,-599.0,0.00021873,2]
[378101652,1754732552741,-599.0,0.00021874,2]
[378101653,1754732552767,-3854.2541035,0.000219,2]
[378101654,1754732552801,-371.29,0.00021907,3]
[378101655,1754732552831,-185.64,0.00021907,3]
[378101656,1754732552861,-556.96,0.00021907,3]
[378101657,1754732552893,-500.0,0.00021916,2]
[378101658,1754732552922,-357.6099415,0.00021916,2]
[378101659,1754732552944,-500.0,0.00021916,2]
[378101660,1754732552971,-500.0,0.00021916,2]
[378101661,1754732553000,-475.75737799,0.00021916,2]
[378101662,1754732553025,-500.0,0.00021917,2]
[378101663,1754732553052,-460.0,0.00021917,2]
[378101664,1754732553079,-460.0,0.00021917,2]
[378101665,1754732553104,-151.0,0.00021917,2]
[378101666,1754732553137,-462.70426537,0.00021917,2]
[378101667,1754732553166,-151.0,0.00021917,2]
[378101668,1754732553195,-460.0,0.00021917,2]
[378101669,1754732553223,-460.0,0.00021917,2]
[378101670,1754732553254,-2057.221825,0.00021917,2]
[378101671,1754732553286,-460.0,0.00021917,2]
[378101672,1754732553314,-2057.221825,0.00021917,2]
[378101673,1754732553342,-460.0,0.00021917,2]
[378101674,1754732553369,-460.0,0.00021917,2]
[378101675,1754732553396,-461.32891208,0.00021917,2]
[378101676,1754732553425,-182.4129117,0.00021917,2]
[378101677,1754732553455,-460.0,0.00021917,2]
[378101678,1754732553481,-460.0,0.00021917,2]
[378101679,1754732553507,-460.0,0.00021917,2]
[378101680,1754732553532,-460.0,0.00021917,2]
[378101681,1754732553558,-460.0,0.00021917,2]
[378101682,1754732553583,-493.22901172,0.00021917,2]
[378101683,1754732553607,-460.0,0.00021917,2]
[378101684,1754732553632,-460.0,0.00021917,2]
[378101685,1754732553658,-460.0,0.00021917,2]
[378101686,1754732553684,-527.04,0.00021917,2]
[378101687,1754732553711,-460.0,0.00021917,2]
[378101688,1754732553737,-460.0,0.00021917,2]
[378101689,1754732553764,-460.0,0.00021917,2]
[378101690,1754732553792,-151.0,0.00021917,2]
[378101691,1754732553819,-460.0,0.00021917,2]
[378101692,1754732553847,-464.11015051,0.00021917,2]